fUST/lending_fUST_20250203
["ID","MTS","AMOUNT","RATE_DAILY","PERIOD"]
[351377585,1738548637700,-500.0,0.00016438,2]
[351377587,1738548637711,-501.81472485,0.00016438,2]
[351377589,1738548637722,-502.53198913,0.00016438,2]
[351377591,1738548637733,-501.97643011,0.00016438,2]
[351377593,1738548637744,-500.0,0.00016438,2]
[351377595,1738548637755,-500.0,0.00016438,2]
[351377597,1738548637766,-500.0,0.00016438,2]
[351377599,1738548637776,-504.88677314,0.00016438,2]
[351377602,1738548637787,-500.0,0.00016438,2]
[351377604,1738548637798,-503.84285586,0.00016438,2]
[351377606,1738548637809,-500.0,0.00016438,2]
[351377608,1738548637820,-569.82,0.00016438,2]
[351377610,1738548637830,-506.4803601,0.00016438,2]
[351377612,1738548637840,-500.0,0.00016438,2]
[351377614,1738548637850,-500.0,0.00016438,2]
[351377616,1738548637860,-500.0,0.00016438,2]
[351377618,1738548637871,-505.04083243,0.00016438,2]
[351377620,1738548637882,-500.0,0.00016438,2]
[351377622,1738548637896,-500.0,0.00016438,2]
[351377624,1738548637907,-424.49814411,0.00016438,2]
[351377626,1738548637918,-500.0,0.00016438,2]
[351377628,1738548637928,-500.0,0.00016438,2]
[351377630,1738548637939,-500.0,0.00016438,2]
[351377632,1738548637949,-386.58280877,0.00016438,2]
[351377633,1738548637959,-503.99257032,0.00016438,2]
[351377634,1738548637970,-502.72580234,0.00016438,2]
[351377636,1738548637983,-322.32203784,0.00016438,2]
[351377638,1738548637994,-500.0,0.00016438,2]
[351377640,1738548638004,-503.22682566,0.00016438,2]
[351377642,1738548638014,-500.0,0.00016438,2]
[351377644,1738548638023,-500.0,0.00016438,2]
[351377646,1738548638033,-500.0,0.00016438,2]
[351377648,1738548638044,-500.0,0.00016438,2]
[351377650,1738548638055,-500.0,0.00016438,2]
[351377652,1738548638066,-500.0,0.00016438,2]
[351377654,1738548638077,-500.0,0.00016438,2]
[351377656,1738548638087,-524.90278061,0.00016438,2]
[351377658,1738548638098,-500.0,0.00016438,2]
[351377660,1738548638107,-500.0,0.00016438,2]
[351377662,1738548638118,-506.05805151,0.00016438,2]
[351377663,1738548638128,-500.0,0.00016438,2]
[351377665,1738548638140,-500.0,0.00016438,2]
[351377667,1738548638150,-537.18992822,0.00016438,2]
[351377668,1738548638160,-500.0,0.00016438,2]
[351377670,1738548638170,-500.0,0.00016438,2]
[351377671,1738548638181,-500.0,0.00016438,2]
[351377673,1738548638192,-500.0,0.00016438,2]
[351377675,1738548638203,-500.0,0.00016438,2]
[351377683,1738548638339,-500.0,0.00016438,2]
[351377685,1738548638350,-500.0,0.00016438,2]
[351377686,1738548638360,-361.3214295,0.00016438,2]
[351377687,1738548638371,-500.0,0.00016438,2]
[351377688,1738548638382,-500.0,0.00016438,2]
[351377690,1738548638393,-617.52,0.00016438,2]
[351377692,1738548638403,-486.70226797,0.00016438,2]
[351377694,1738548638414,-500.0,0.00016438,2]
[351377696,1738548638424,-500.0,0.00016438,2]
[351377697,1738548638435,-500.0,0.00016438,2]
[351377698,1738548638445,-472.84988908,0.00016438,2]
[351377699,1738548638455,-505.46306059,0.00016438,2]
[351377700,1738548638466,-500.0,0.00016438,2]
[351377701,1738548638477,-500.0,0.00016438,2]
[351377703,1738548638487,-588.54954187,0.00016438,2]
[351377704,1738548638498,-194.12024938,0.00016438,2]
[351377705,1738548638508,-500.0,0.00016438,2]
[351377707,1738548638518,-492.60429228,0.00016438,2]
[351377709,1738548638528,-500.0,0.00016438,2]
[351377711,1738548638538,-500.0,0.00016438,2]
[351377713,1738548638548,-500.0,0.00016438,2]
[351377714,1738548638558,-500.0,0.00016438,2]
[351377715,1738548638568,-500.0,0.00016438,2]
[351377716,1738548638580,-500.0,0.00016438,2]
[351377717,1738548638597,-500.0,0.00016438,2]
[351377718,1738548638607,-264.97568326,0.00016438,2]
[351377719,1738548638617,-504.68400586,0.00016438,2]
[351377720,1738548638627,-500.0,0.00016438,2]
[351377721,1738548638640,-505.05440427,0.00016438,2]
[351377722,1738548638650,-504.59350213,0.00016438,2]
[351377723,1738548638660,-500.0,0.00016438,2]
[351377724,1738548638671,-500.0,0.00016438,2]
[351377725,1738548638683,-500.0,0.00016438,2]
[351377726,1738548638694,-603.15901246,0.00016438,2]
[351377727,1738548638704,-500.0,0.00016438,2]
[351377728,1738548638715,-230.66271003,0.00016438,2]
[351377729,1738548638725,-781.11,0.00016438,2]
[351377730,1738548638736,-500.0,0.00016438,2]
[351377731,1738548638746,-500.0,0.00016438,2]
[351377732,1738548638757,-500.0,0.00016438,2]
[351377733,1738548638768,-500.0,0.00016438,2]
[351377734,1738548638779,-640.88,0.00016438,2]
[351377735,1738548638791,-201.31922188,0.00016438,2]
[351377736,1738548638801,-500.0,0.00016438,2]
[351377737,1738548638811,-500.0,0.00016438,2]
[351377738,1738548638821,-505.66831134,0.00016438,2]
[351377739,1738548638831,-500.0,0.00016438,2]
[351377740,1738548638842,-505.3771181,0.00016438,2]
[351377741,1738548638852,-505.96861158,0.00016438,2]
[351377742,1738548638862,-500.0,0.00016438,2]
[351377743,1738548638872,-1663.19,0.00016438,2]
[351377744,1738548638882,-500.0,0.00016438,2]
[351377745,1738548638895,-612.77,0.00016438,2]
[351377746,1738548638906,-532.76,0.00016438,2]
[351377747,1738548638917,-799.22,0.00016438,2]
[351377748,1738548638927,-268.05401333,0.00016438,2]
[351377749,1738548638937,-1107.36,0.00016438,2]
[351377750,1738548638947,-500.0,0.00016438,2]
[351377751,1738548638957,-500.0,0.00016438,2]
[351377752,1738548638967,-505.15211658,0.00016438,2]
[351377753,1738548638976,-500.0,0.00016438,2]
[351377754,1738548638986,-500.0,0.00016438,2]
[351377755,1738548638997,-500.0,0.00016438,2]
[351377756,1738548639007,-500.0,0.00016438,2]
[351377757,1738548639017,-500.0,0.00016438,2]
[351377758,1738548639027,-509.215291,0.00016438,2]
[351377759,1738548639038,-1003.77,0.00016438,2]
[351377760,1738548639048,-503.36110233,0.00016438,2]
[351377761,1738548639058,-500.0,0.00016438,2]
[351377762,1738548639068,-500.0,0.00016438,2]
[351377763,1738548639078,-501.86249215,0.00016438,2]
[351377764,1738548639088,-577.25786942,0.00016438,2]
[351377765,1738548639098,-505.14597353,0.00016438,2]
[351377766,1738548639108,-517.26,0.00016438,2]
[351377767,1738548639118,-506.57760245,0.00016438,2]
[351377768,1738548639128,-500.0,0.00016438,2]
[351377769,1738548639142,-500.0,0.00016438,2]
[351377770,1738548639152,-500.0,0.00016438,2]
[351377771,1738548639164,-387.99291555,0.00016438,2]
[351377772,1738548639173,-500.0,0.00016438,2]
[351377773,1738548639183,-507.25791754,0.00016438,2]
[351377775,1738548639194,-570.04,0.00016438,2]
[351377777,1738548639205,-1635.17,0.00016438,2]
[351377779,1738548639215,-500.0,0.00016438,2]
[351377780,1738548639224,-500.0,0.00016438,2]
[351377781,1738548639233,-500.0,0.00016438,2]
[351377782,1738548639243,-500.0,0.00016438,2]
[351377783,1738548639253,-500.0,0.00016438,2]
[351377784,1738548639263,-664.68,0.00016438,2]
[351377785,1738548639272,-664.68,0.00016438,2]
[351377786,1738548639283,-664.68,0.00016438,2]
[351377787,1738548639294,-3978.52,0.00016438,2]
[351377788,1738548639304,-664.68,0.00016438,2]
[351377789,1738548639314,-500.0,0.00016438,2]
[351377790,1738548639324,-664.68,0.00016438,2]
[351377791,1738548639334,-664.68,0.00016438,2]
[351377792,1738548639345,-500.0,0.00016438,2]
[351377793,1738548639355,-664.68,0.00016438,2]
[351377795,1738548639364,-500.0,0.00016438,2]
[351377797,1738548639374,-500.0,0.00016438,2]
[351377798,1738548639384,-664.68,0.00016438,2]
[351377800,1738548639396,-500.0,0.00016438,2]
[351377802,1738548639406,-664.68,0.00016438,2]
[351377803,1738548639415,-500.0,0.00016438,2]
[351377804,1738548639425,-664.68,0.00016438,2]
[351377805,1738548639435,-500.0,0.00016438,2]
[351377806,1738548639445,-664.68,0.00016438,2]
[351377807,1738548639455,-500.0,0.00016438,2]
[351377808,1738548639465,-664.68,0.00016438,2]
[351377809,1738548639474,-500.0,0.00016438,2]
[351377811,1738548639484,-664.68,0.00016438,2]
[351377813,1738548639494,-500.0,0.00016438,2]
[351377815,1738548639503,-500.0,0.00016438,2]
[351377817,1738548639513,-500.0,0.00016438,2]
[351377818,1738548639524,-500.0,0.00016438,2]
[351377819,1738548639533,-500.0,0.00016438,2]
[351377822,1738548639543,-500.0,0.00016438,2]
[351377825,1738548639553,-500.0,0.00016438,2]
[351377827,1738548639563,-500.0,0.00016438,2]
[351377831,1738548639573,-500.0,0.00016438,2]
[351377833,1738548639584,-13223.6,0.00016438,2]
[351377836,1738548639594,-503.85399343,0.00016438,2]
[351377839,1738548639604,-500.0,0.00016438,2]
[351377841,1738548639614,-500.0,0.00016438,2]
[351377843,1738548639625,-500.0,0.00016438,2]
[351377844,1738548639636,-500.0,0.00016438,2]
[351377846,1738548639646,-503.28535485,0.00016438,2]
[351377848,1738548639655,-500.0,0.00016438,2]
[351377850,1738548639664,-500.0,0.00016438,2]
[351377852,1738548639674,-504.40288365,0.00016438,2]
[351377853,1738548639684,-500.0,0.00016438,2]
[351377855,1738548639694,-504.01908051,0.00016438,2]
[351377857,1738548639705,-500.0,0.00016438,2]
[351377859,1738548639715,-500.0,0.00016438,2]
[351377861,1738548639725,-581.87025661,0.00016438,2]
[351377863,1738548639735,-500.0,0.00016438,2]
[351377864,1738548639744,-502.4320224,0.00016438,2]
[351377866,1738548639754,-1140.3,0.00016438,2]
[351377867,1738548639764,-508.08721027,0.00016438,2]
[351377868,1738548639774,-500.0,0.00016438,2]
[351377869,1738548639784,-830.51,0.00016438,2]
[351377870,1738548639794,-504.62254589,0.00016438,2]
[351377871,1738548639804,-591.4755616,0.00016438,2]
[351377872,1738548639813,-500.0,0.00016438,2]
[351377873,1738548639823,-500.0,0.00016438,2]
[351377875,1738548639832,-500.0,0.00016438,2]
[351377877,1738548639842,-500.0,0.00016438,2]
[351377878,1738548639852,-172.37933486,0.00016438,2]
[351377880,1738548639862,-500.0,0.00016438,2]
[351377882,1738548639871,-500.0,0.00016438,2]
[351377884,1738548639881,-633.12684086,0.00016438,2]
[351377886,1738548639892,-2423.95,0.00016438,2]
[351377888,1738548639902,-528.79,0.00016438,2]
[351377889,1738548639911,-500.61856398,0.00016438,2]
[351377891,1738548639921,-500.0,0.00016438,2]
[351377893,1738548639931,-500.0,0.00016438,2]
[351377894,1738548639940,-8569.71,0.00016438,2]
[351377896,1738548639949,-501.98437478,0.00016438,2]
[351377898,1738548639960,-519.71765687,0.00016438,2]
[351377900,1738548639969,-500.0,0.00016438,2]
[351377902,1738548639979,-500.0,0.00016438,2]
[351377904,1738548639988,-2493.97,0.00016438,2]
[351377905,1738548639998,-500.0,0.00016438,2]
[351377907,1738548640009,-500.0,0.00016438,2]
[351377909,1738548640019,-500.0,0.00016438,2]
[351377911,1738548640029,-1123.29,0.00016438,2]
[351377913,1738548640039,-510.36103049,0.00016438,2]
[351377915,1738548640048,-500.0,0.00016438,2]
[351377916,1738548640058,-500.0,0.00016438,2]
[351377917,1738548640068,-970.13,0.00016438,2]
[351377918,1738548640077,-500.0,0.00016438,2]
[351377919,1738548640087,-500.0,0.00016438,2]
[351377920,1738548640097,-500.0,0.00016438,2]
[351377921,1738548640107,-500.0,0.00016438,2]
[351377922,1738548640117,-500.0,0.00016438,2]
[351377923,1738548640127,-610.59176382,0.00016438,2]
[351377924,1738548640137,-500.0,0.00016438,2]
[351377925,1738548640148,-500.0,0.00016438,2]
[351377926,1738548640158,-500.0,0.00016438,2]
[351377927,1738548640169,-500.0,0.00016438,2]
[351377928,1738548640179,-1070.89,0.00016438,2]
[351377929,1738548640188,-500.0,0.00016438,2]
[351377930,1738548640198,-500.0,0.00016438,2]
[351377931,1738548640208,-500.68869555,0.00016438,2]
[351377932,1738548640218,-500.0,0.00016438,2]
[351377933,1738548640227,-500.0,0.00016438,2]
[351377934,1738548640237,-205.14338816,0.00016438,2]
[351377935,1738548640248,-500.0,0.00016438,2]
[351377936,1738548640257,-500.0,0.00016438,2]
[351377938,1738548640267,-212.26,0.00016438,2]
[351377940,1738548640277,-9089.2,0.00016438,2]
[351377942,1738548640287,-500.0,0.00016438,2]
[351377944,1738548640296,-500.0,0.00016438,2]
[351377946,1738548640306,-500.0,0.00016438,2]
[351377947,1738548640316,-4825.55,0.00016438,2]
[351377950,1738548640326,-500.0,0.00016438,2]
[351377952,1738548640335,-500.0,0.00016438,2]
[351377953,1738548640345,-500.0,0.00016438,2]
[351377955,1738548640355,-588.68918643,0.00016438,2]
[351377963,1738548640450,-500.0,0.00016438,2]
[351377965,1738548640461,-500.64117905,0.00016438,2]
[351377967,1738548640471,-500.0,0.00016438,2]
[351377969,1738548640483,-1033.58,0.00016438,2]
[351377970,1738548640493,-2083.78,0.00016438,2]
[351377971,1738548640503,-506.04679062,0.00016438,2]
[351377972,1738548640513,-503.90303921,0.00016438,2]
[351377973,1738548640522,-1182.38,0.00016438,2]
[351377974,1738548640532,-500.0,0.00016438,2]
[351377975,1738548640543,-501.31918271,0.00016438,2]
[351377976,1738548640552,-500.0,0.00016438,2]
[351377977,1738548640562,-500.0,0.00016438,2]
[351377979,1738548640571,-500.0,0.00016438,2]
[351377981,1738548640581,-500.0,0.00016438,2]
[351377983,1738548640596,-500.0,0.00016438,2]
[351377984,1738548640606,-500.0,0.00016438,2]
[351377986,1738548640618,-500.0,0.00016438,2]
[351377987,1738548640628,-500.0,0.00016438,2]
[351377988,1738548640637,-500.0,0.00016438,2]
[351377990,1738548640648,-500.0,0.00016438,2]
[351377992,1738548640657,-1000.0,0.00016438,7]
[351377994,1738548640667,-2045.14,0.00016438,2]
[351377996,1738548640677,-500.0,0.00016438,2]
[351377998,1738548640687,-500.0,0.00016438,2]
[351377999,1738548640697,-500.0,0.00016438,2]
[351378001,1738548640707,-500.0,0.00016438,2]
[351378003,1738548640717,-500.0,0.00016438,2]
[351378005,1738548640726,-501.82442019,0.00016438,2]
[351378007,1738548640736,-500.0,0.00016438,2]
[351378009,1738548640745,-500.0,0.00016438,2]
[351378010,1738548640755,-504.73411963,0.00016438,2]
[351378012,1738548640765,-500.41950351,0.00016438,2]
[351378014,1738548640775,-2045.35,0.00016438,2]
[351378016,1738548640785,-500.0,0.00016438,2]
[351378018,1738548640795,-500.0,0.00016438,2]
[351378020,1738548640805,-500.0,0.00016438,2]
[351378021,1738548640815,-500.0,0.00016438,2]
[351378023,1738548640826,-500.0,0.00016438,2]
[351378024,1738548640836,-500.0,0.00016438,2]
[351378026,1738548640845,-947.86,0.00016438,2]
[351378027,1738548640855,-502.59386268,0.00016438,2]
[351378028,1738548640864,-500.0,0.00016438,2]
[351378029,1738548640874,-500.0,0.00016438,2]
[351378030,1738548640883,-500.0,0.00016438,2]
[351378031,1738548640894,-500.0,0.00016438,2]
[351378032,1738548640904,-270.53755483,0.00016438,2]
[351378033,1738548640914,-500.0,0.00016438,2]
[351378034,1738548640924,-500.0,0.00016438,2]
[351378035,1738548640934,-500.0,0.00016438,2]
[351378036,1738548640943,-502.69868865,0.00016438,2]
[351378037,1738548640954,-500.0,0.00016438,2]
[351378038,1738548640963,-979.96,0.00016438,2]
[351378039,1738548640973,-502.78604762,0.00016438,2]
[351378040,1738548640982,-500.0,0.00016438,2]
[351378041,1738548640992,-500.0,0.00016438,2]
[351378042,1738548641002,-3039.38,0.00016438,2]
[351378043,1738548641012,-500.0,0.00016438,2]
[351378044,1738548641021,-501.31459722,0.00016438,2]
[351378045,1738548641031,-500.0,0.00016438,2]
[351378046,1738548641041,-500.0,0.00016438,2]
[351378048,1738548641050,-500.0,0.00016438,2]
[351378049,1738548641060,-514.65702013,0.00016438,2]
[351378050,1738548641070,-500.0,0.00016438,2]
[351378052,1738548641079,-502.43929256,0.00016438,2]
[351378053,1738548641089,-500.0,0.00016438,2]
[351378054,1738548641098,-500.0,0.00016438,2]
[351378055,1738548641108,-500.0,0.00016438,2]
[351378056,1738548641118,-500.0,0.00016472,2]
[351378057,1738548641127,-501.32680443,0.00016473,2]
[351378058,1738548641138,-176.18077423,0.000165,2]
[351378059,1738548641150,-151.0,0.000165,2]
[351378060,1738548641160,-1042.74499789,0.00016561,2]
[351378061,1738548641170,-664.68,0.00016574,2]
[351378062,1738548641180,-664.68,0.00016574,2]
[351378063,1738548641191,-664.68,0.00016574,2]
[351378064,1738548641201,-664.68,0.00016574,2]
[351378065,1738548641211,-500.0,0.00016574,2]
[351378066,1738548641221,-500.0,0.00016574,2]
[351378067,1738548641231,-500.0,0.00016574,2]
[351378068,1738548641240,-214.4145488,0.00016574,2]
[351378069,1738548641250,-318.15018959,0.00016575,2]
[351378070,1738548641260,-500.0,0.00016575,2]
[351378071,1738548641270,-500.0,0.00016575,2]
[351378072,1738548641279,-500.0,0.00016575,2]
[351378073,1738548641289,-500.0,0.00016575,2]
[351378074,1738548641299,-500.0,0.00016575,2]
[351378075,1738548641310,-500.0,0.00016575,2]
[351378076,1738548641319,-500.0,0.00016575,2]
[351378077,1738548641329,-500.0,0.00016575,2]
[351378078,1738548641338,-500.0,0.00016575,2]
[351378079,1738548641348,-500.0,0.00016575,2]
[351378080,1738548641359,-500.0,0.00016575,2]
[351378081,1738548641368,-500.0,0.00016575,2]
[351378082,1738548641378,-500.0,0.00016575,2]
[351378083,1738548641387,-500.0,0.00016575,2]
[351378084,1738548641399,-500.0,0.00016575,2]
[351378085,1738548641410,-500.0,0.00016575,2]
[351378086,1738548641420,-556.26064698,0.00016575,2]
[351378087,1738548641431,-500.0,0.00016575,2]
[351378088,1738548641441,-500.0,0.00016575,2]
[351378089,1738548641451,-500.0,0.00016575,2]
[351378090,1738548641462,-500.0,0.00016575,2]
[351378091,1738548641471,-500.0,0.00016575,2]
[351378092,1738548641481,-569.82,0.00016575,2]
[351378093,1738548641491,-500.0,0.00016575,2]
[351378094,1738548641500,-508.54686337,0.00016575,2]
[351378095,1738548641509,-500.0,0.00016575,2]
[351378096,1738548641518,-500.0,0.00016575,2]
[351378097,1738548641530,-500.0,0.00016575,2]
[351378098,1738548641540,-500.0,0.00016575,2]
[351378099,1738548641550,-500.0,0.00016575,2]
[351378100,1738548641560,-500.0,0.00016575,2]
[351378101,1738548641570,-500.0,0.00016575,2]
[351378102,1738548641581,-500.0,0.00016575,2]
[351378103,1738548641595,-500.0,0.00016575,2]
[351378104,1738548641606,-509.26963203,0.00016575,2]
[351378105,1738548641616,-500.0,0.00016575,2]
[351378106,1738548641628,-500.0,0.00016575,2]
[351378107,1738548641638,-430.84869806,0.00016575,2]
[351378108,1738548641650,-507.21659512,0.00016575,2]
[351378109,1738548641661,-501.49701019,0.00016575,2]
[351378110,1738548641673,-500.0,0.00016575,2]
[351378111,1738548641684,-617.52,0.00016575,2]
[351378112,1738548641696,-500.0,0.00016575,2]
[351378113,1738548641708,-500.0,0.00016575,2]
[351378114,1738548641718,-404.71495719,0.00016575,2]
[351378115,1738548641729,-500.0,0.00016575,2]
[351378116,1738548641740,-500.0,0.00016575,2]
[351378117,1738548641751,-504.1622834,0.00016575,2]
[351378118,1738548641762,-500.0,0.00016575,2]
[351378119,1738548641773,-500.0,0.00016575,2]
[351378120,1738548641783,-500.0,0.00016575,2]
[351378121,1738548641794,-630.00843714,0.00016575,2]
[351378122,1738548641804,-500.0,0.00016575,2]
[351378123,1738548641814,-781.11,0.00016575,2]
[351378124,1738548641824,-500.0,0.00016575,2]
[351378125,1738548641834,-500.0,0.00016575,2]
[351378126,1738548641846,-500.0,0.00016575,2]
[351378127,1738548641856,-640.88,0.00016575,2]
[351378128,1738548641866,-500.0,0.00016575,2]
[351378129,1738548641876,-187.87185227,0.00016575,2]
[351378130,1738548641885,-500.0,0.00016575,2]
[351378131,1738548641898,-1663.19,0.00016575,2]
[351378132,1738548641909,-500.0,0.00016575,2]
[351378133,1738548641918,-612.77,0.00016575,2]
[351378134,1738548641927,-532.76,0.00016575,2]
[351378135,1738548641936,-799.22,0.00016575,2]
[351378136,1738548641946,-1107.36,0.00016575,2]
[351378137,1738548641955,-500.0,0.00016575,2]
[351378138,1738548641964,-500.0,0.00016575,2]
[351378139,1738548641973,-520.392392,0.00016575,2]
[351378140,1738548641983,-504.10379324,0.00016575,2]
[351378141,1738548641992,-500.0,0.00016575,2]
[351378142,1738548642001,-1003.77,0.00016575,2]
[351378143,1738548642010,-500.0,0.00016575,2]
[351378144,1738548642019,-500.0,0.00016575,2]
[351378145,1738548642028,-517.26,0.00016575,2]
[351378147,1738548642037,-500.0,0.00016575,2]
[351378148,1738548642046,-505.74415829,0.00016575,2]
[351378149,1738548642056,-182.87518212,0.00016575,2]
[351378150,1738548642065,-500.0,0.00016575,2]
[351378151,1738548642074,-570.04,0.00016575,2]
[351378152,1738548642084,-1635.17,0.00016575,2]
[351378153,1738548642093,-500.0,0.00016575,2]
[351378154,1738548642102,-500.0,0.00016575,2]
[351378155,1738548642111,-3978.52,0.00016575,2]
[351378156,1738548642121,-13223.6,0.00016575,2]
[351378157,1738548642130,-500.0,0.00016575,2]
[351378158,1738548642140,-500.0,0.00016575,2]
[351378159,1738548642149,-500.0,0.00016575,2]
[351378160,1738548642159,-500.0,0.00016575,2]
[351378161,1738548642168,-504.34849576,0.00016575,2]
[351378162,1738548642177,-500.0,0.00016575,2]
[351378163,1738548642186,-500.0,0.00016575,2]
[351378164,1738548642195,-500.0,0.00016575,2]
[351378165,1738548642205,-500.0,0.00016575,2]
[351378166,1738548642214,-1140.3,0.00016575,2]
[351378167,1738548642223,-830.51,0.00016575,2]
[351378168,1738548642233,-500.0,0.00016575,2]
[351378169,1738548642242,-617.71214252,0.00016575,2]
[351378170,1738548642251,-500.0,0.00016575,2]
[351378171,1738548642260,-500.0,0.00016575,2]
[351378172,1738548642269,-500.0,0.00016575,2]
[351378176,1738548642364,-2423.95,0.00016575,2]
[351378179,1738548642375,-528.79,0.00016575,2]
[351378181,1738548642385,-500.0,0.00016575,2]
[351378183,1738548642398,-500.0,0.00016575,2]
[351378186,1738548642407,-8569.71,0.00016575,2]
[351378189,1738548642417,-500.0,0.00016575,2]
[351378191,1738548642427,-500.0,0.00016575,2]
[351378194,1738548642437,-2493.97,0.00016575,2]
[351378196,1738548642446,-470.83665494,0.00016575,2]
[351378197,1738548642456,-500.0,0.00016575,2]
[351378199,1738548642465,-1123.29,0.00016575,2]
[351378201,1738548642475,-500.0,0.00016575,2]
[351378203,1738548642484,-500.0,0.00016575,2]
[351378205,1738548642494,-500.0,0.00016575,2]
[351378207,1738548642503,-970.13,0.00016575,2]
[351378209,1738548642512,-501.40825451,0.00016575,2]
[351378212,1738548642523,-504.23653817,0.00016575,2]
[351378215,1738548642532,-500.0,0.00016575,2]
[351378218,1738548642544,-500.0,0.00016575,2]
[351378220,1738548642554,-500.0,0.00016575,2]
[351378222,1738548642564,-500.0,0.00016575,2]
[351378224,1738548642574,-500.0,0.00016575,2]
[351378228,1738548642585,-500.0,0.00016575,2]
[351378231,1738548642595,-1070.89,0.00016575,2]
[351378235,1738548642606,-500.0,0.00016575,2]
[351378240,1738548642616,-500.0,0.00016575,2]
[351378244,1738548642630,-500.0,0.00016575,2]
[351378247,1738548642642,-500.0,0.00016575,2]
[351378254,1738548642654,-500.0,0.00016575,2]
[351378258,1738548642664,-9089.2,0.00016575,2]
[351378262,1738548642675,-500.0,0.00016575,2]
[351378264,1738548642686,-504.49697437,0.00016575,2]
[351378267,1738548642697,-4825.55,0.00016575,2]
[351378270,1738548642708,-500.0,0.00016575,2]
[351378275,1738548642718,-500.0,0.00016575,2]
[351378281,1738548642730,-500.0,0.00016575,2]
[351378288,1738548642741,-1033.58,0.00016575,2]
[351378294,1738548642752,-2083.78,0.00016575,2]
[351378301,1738548642762,-1182.38,0.00016575,2]
[351378306,1738548642773,-479.0,0.00016575,2]
[351378311,1738548642783,-500.0,0.00016575,2]
[351378317,1738548642796,-500.0,0.00016575,2]
[351378323,1738548642806,-511.83707674,0.00016575,2]
[351378328,1738548642816,-500.0,0.00016575,2]
[351378333,1738548642826,-500.0,0.00016575,2]
[351378339,1738548642836,-243.97317066,0.00016575,2]
[351378344,1738548642846,-503.67201098,0.00016575,2]
[351378350,1738548642855,-500.0,0.00016575,2]
[351378356,1738548642865,-1000.0,0.00016575,7]
[351378361,1738548642875,-504.40458656,0.00016575,2]
[351378364,1738548642885,-2045.14,0.00016575,2]
[351378368,1738548642896,-500.0,0.00016575,2]
[351378373,1738548642907,-500.0,0.00016575,2]
[351378378,1738548642917,-500.0,0.00016575,2]
[351378383,1738548642927,-646.87704524,0.00016575,2]
[351378389,1738548642937,-448.41840774,0.00016575,2]
[351378394,1738548642947,-2045.35,0.00016575,2]
[351378400,1738548642959,-505.7674452,0.00016575,2]
[351378406,1738548642970,-500.0,0.00016575,2]
[351378412,1738548642980,-534.12986993,0.00016575,2]
[351378418,1738548642991,-500.0,0.00016575,2]
[351378424,1738548643002,-947.86,0.00016575,2]
[351378429,1738548643012,-501.18175277,0.00016575,2]
[351378435,1738548643022,-500.0,0.00016575,2]
[351378441,1738548643032,-500.0,0.00016575,2]
[351378448,1738548643043,-510.69771154,0.00016575,2]
[351378455,1738548643053,-500.0,0.00016575,2]
[351378461,1738548643064,-500.0,0.00016575,2]
[351378467,1738548643074,-979.96,0.00016575,2]
[351378471,1738548643084,-500.0,0.00016575,2]